Cogmind - Beta 14 @@@ ROGUE MODE // 2024.08.14 @ 14:20:59 Player: Sionnis Result: Destroyed by JV-ZLH(E) with Barrage Gun Performance ------------- Evolutions (0) 0 Regions Visited (4) 800 Robots Destroyed (27) 135 Value Destroyed (882) 882 Prototype IDs (3) 60 Alien Tech Used (0) 0 Bonus (300) 300 TOTAL SCORE: 2177 Bonus ------- Registered with UFD 300 Cogmind --------- Core Integrity 0/250 Matter 295/300 Energy 160/2600 System Corruption 0% Temperature Cool (0) Movement Hovering (220) Ox2 Location -8/Scraptown Parts ------- > --- POWER (1) -------- MA-1KR's Cyclogen > --- PROPULSION (2) --- Combat Airjet > --- UTILITY (2) ------ Medium Storage Unit Sensor Array > --- WEAPON (2) ------- CPS Tube Heavy Mace > --- INVENTORY (10) --- VTOL Module VTOL Module VTOL Module VTOL Module Machine Analyzer Transmission Jammer Improved Propulsion Shielding Improved Light Armor Plating Hacking Suite Improved Grenade Launcher Peak State ------------ > --- POWER ------------ MA-1KR's Cyclogen > --- PROPULSION ------- Combat Airjet Xenon Bombardment Thruster > --- UTILITY ---------- Medium Storage Unit Sensor Array > --- WEAPON ----------- CPS Tube Heavy Mace > --- INVENTORY -------- VTOL Module VTOL Module VTOL Module VTOL Module Machine Analyzer Transmission Jammer Improved Propulsion Shielding Improved Light Armor Plating Hacking Suite Improved Grenade Launcher [Rating: 27] Favorites ----------- Power Ion Engine Engine Ion Engine Power Core Light Nuclear Core Reactor MA-1KR's Cyclogen Propulsion Light Treads Treads Light Treads Wheel Wheel Hover Unit Combat Airjet Flight Unit Xenon Bombardment Thruster Utility Heat Sink Device Heat Sink Storage Large Storage Unit Processor Targeting Computer Weapon Advanced Beam Cannon Energy Cannon Advanced Beam Cannon Ballistic Gun Light Assault Rifle Special Weapon Plasma Cutter Impact Weapon Heavy Mace Slashing Weapon Axe Build | -11 -10 -10 -8 -8 ------- Run | Yrd Mat Sub Rec Scr Slots Evolved . | . . . . . Power . | . . . . . Propulsion . | . . . . . Utility . | . . . . . Weapon . | . . . . . Parts Attached 30 | 6 7 2 6 9 Power 3 | 1 . . . 2 Engine 1 | 1 . . . . Core 1 | . . . . 1 Reactor 1 | . . . . 1 Propulsion 7 | 2 1 . 2 2 Treads 4 | 2 . . 2 . Leg . | . . . . . Wheel 1 | . 1 . . . Hover 1 | . . . . 1 Flight 1 | . . . . 1 Utility 7 | 1 3 . 1 2 Device 3 | . 1 . 1 1 Storage 3 | 1 1 . . 1 Processor 1 | . 1 . . . Hackware . | . . . . . Protection . | . . . . . Artifact . | . . . . . Weapon 13 | 2 3 2 3 3 Energy Gun . | . . . . . Energy Cannon 4 | . 3 1 . . Ballistic Gun 3 | 2 . . 1 . Ballistic Cannon . | . . . . . Launcher . | . . . . . Special Weapon 2 | . . . 1 1 Impact Weapon 3 | . . 1 . 2 Slashing Weapon 1 | . . . 1 . Piercing Weapon . | . . . . . Special Melee Weapon . | . . . . . Unidentified Prototypes 2 | . 1 . . 1 Parts Lost 4 | . 1 . 2 1 Power . | . . . . . Propulsion 3 | . 1 . 1 1 Utility 1 | . . . 1 . Weapon . | . . . . . Highest Loss Streak 1 | . 1 . 1 1 To Critical Strikes . | . . . . . Average Slot Usage (%) 90 | . 96 100 95 77 Engine 9 | . 14 14 14 . Treads 16 | . 27 14 19 . Wheel 2 | . . 14 4 . Hover 4 | . . . . 13 Device 11 | . 7 14 13 14 Storage 14 | . 14 14 14 14 Processor 1 | . 3 . . . Energy Cannon 18 | . 27 27 25 . Special Weapon 4 | . . . . 14 Slashing Weapon 3 | . . . . 11 Peak Build Rating 27 | 6 13 12 13 27 Average Rating 12 | 4 11 11 12 15 On Entrance 8 | . 6 12 12 12 Naked Turns . | . . . . . Heaviest Build 35 | 13 34 34 34 35 Greatest Support 40 | 40 40 10 40 40 Greatest Overweight (x) 3 | 1 3 3 3 2 Average Overweight (x) 1 | . . 3 1 1 Largest Inventory Capacity 15 | 8 15 15 15 15 Average Capacity 11 | 7 9 15 15 10 Most Carried 15 | 3 12 11 15 13 Average Carried 9 | 1 8 11 12 9 Final Capacity 15 | 8 15 15 15 10 Final Carried 13 | 3 11 11 13 10 Class Distribution -------------------- 98% | Mutant Dominant Class ---------------- Mutant | -10/Materials Mutant | -10/Subcaves Mutant | -8/Recycling Mutant | -8/Scraptown Resources | -11 -10 -10 -8 -8 ----------- Run | Yrd Mat Sub Rec Scr Matter Collected 494 | 228 92 10 36 128 Remotely . | . . . . . Salvage Created 1189 | . 686 135 368 . Parts 62 | . 40 6 16 . Haulers Intercepted 1 | . 1 . . . Recyclers Shooed 1 | . 1 . . . Parts Field Recycled . | . . . . . Retrieved Matter . | . . . . . Parts Self-Destructed 11 | . . 11 . . Prevented . | . . . . . Kills | -11 -10 -10 -8 -8 ------- Run | Yrd Mat Sub Rec Scr Combat Hostiles Destroyed 20 | . 12 3 5 . Cannons 18 | . 11 3 4 . Classes Destroyed 8 | . 5 1 2 . Hauler 1 | . 1 . . . Recycler 1 | . 1 . . . Operator 2 | . 2 . . . Watcher 3 | . 3 . . . Grunt 14 | . 12 2 . . Brawler 1 | . . . 1 . Sentry 4 | . . . 4 . Subdweller 1 | . . 1 . . Best Kill Streak 3 | . 3 2 2 . Combat Bots Only 2 | . 2 2 2 . Max Kills in Single Turn 1 | . 1 1 1 . Gunslinging . | . . . . . Exploded . | . . . . . Melee . | . . . . . Uniques/NPCs Destroyed . | . . . . . Combat | -11 -10 -10 -8 -8 -------- Run | Yrd Mat Sub Rec Scr Hostile Shots Fired 105 | . 38 8 21 38 Missed 30 | . 6 3 6 15 Damage Taken 983 | . 454 79 239 211 Core 255 | . 107 53 27 68 Absorbed by Shields . | . . . . . Core Remaining (%) 100 | 100 . . . . Volleys Fired 73 | . 45 8 20 . Largest 2 | . 2 2 2 . Hottest 136 | . 136 136 136 . Shots Fired 140 | . 87 16 37 . Gun . | . . . . . Cannon 140 | . 87 16 37 . Launcher . | . . . . . Special . | . . . . . Kinetic . | . . . . . Thermal 140 | . 87 16 37 . Explosive . | . . . . . Electromagnetic . | . . . . . Robot Hit Streak 11 | . 6 3 11 . Robot Miss Streak 4 | . 4 1 3 . Penetration Max . | . . . . . Secondary Targets . | . . . . . Shots Hit Robots 84 | . 51 10 23 . Core Hits 32 | . 20 5 7 . Critical Kills 2 | . 1 . 1 . Critical Parts Destroyed . | . . . . . Critical Strikes 2 | . 1 . 1 . Meltdown 2 | . 1 . 1 . Melee Attacks 3 | . . 1 . 2 Impact 3 | . . 1 . 2 Slashing . | . . . . . Piercing . | . . . . . Sneak Attacks . | . . . . . Combat Hostiles . | . . . . . Follow-up Attacks . | . . . . . Damage Inflicted 1810 | . 1093 207 510 . Guns . | . . . . . Cannons 1810 | . 1093 207 510 . Explosions . | . . . . . Melee . | . . . . . Ramming . | . . . . . Kinetic . | . . . . . Thermal 1810 | . 1093 207 510 . Explosive . | . . . . . Electromagnetic . | . . . . . Impact . | . . . . . Slashing . | . . . . . Piercing . | . . . . . Highest Corruption 5 | . . . 5 . Average Corruption 5 | . . . 5 . Corruption Purged . | . . . . . Corruption Blocked . | . . . . . Effects 9 | . . . 9 . Message Errors 2 | . . . 2 . Matter Fused 2 | . . . 2 . Heat Flow Errors 3 | . . . 3 . Data Loss (minor) 1 | . . . 1 . Data Loss (major) 1 | . . . 1 . Overload Shots . | . . . . . Overflow Damage 2 | . 2 . . . Projectiles 2 | . 2 . . . Explosions . | . . . . . Melee . | . . . . . Knockbacks . | . . . . . Impact . | . . . . . Kinetic . | . . . . . Secondary . | . . . . . Self-Inflicted Damage . | . . . . . Shots . | . . . . . Rammed . | . . . . . Targets Rammed . | . . . . . Kicked . | . . . . . Crushed . | . . . . . Highest Temperature 385 | . 362 4 385 . Average Temperature 121 | . 123 1 121 . Received Heat Transfer 441 | . 258 27 54 102 Effects 8 | . 3 . 5 . Shutdowns 1 | . . . 1 . Energy Bleed 1 | . 1 . . . Interference 4 | . . . 4 . Short Circuit 1 | . 1 . . . Damage (minor) 1 | . 1 . . . Siege Activations . | . . . . . Robots Corrupted . | . . . . . Combat Hostiles . | . . . . . Parts Fried . | . . . . . Impact Corruptions . | . . . . . Robots Melted 2 | . 1 . 1 . Combat Hostiles 2 | . 1 . 1 . Parts Melted 7 | . 2 1 4 . Heat Transferred 3219 | . 1924 370 925 . Parts Sabotaged . | . . . . . Parts Stolen . | . . . . . Parts Stripped . | . . . . . Power Chain Reactions . | . . . . . Alert | -11 -10 -10 -8 -8 ------- Run | Yrd Mat Sub Rec Scr Peak Influence 211 | . 211 . 106 . Initial 76 | . . . 76 . Average 87 | . 101 . 70 . Maximum Alert Level 1 | . 1 . . . Low Security (%) 98 | 100 97 . 100 . Level 1 1 | . 2 . . . Level 2 . | . . . . . Level 3 . | . . . . . Level 4 . | . . . . . Level 5 . | . . . . . High Security . | . . . . . Max Security . | . . . . . Squads Dispatched 4 | . 4 . . . Investigation 2 | . 2 . . . Extermination . | . . . . . Reinforcement 2 | . 2 . . . Assault . | . . . . . Garrison . | . . . . . Intercept . | . . . . . Searches Triggered . | . . . . . Construction Impeded . | . . . . . Haulers Reinforced . | . . . . . Active Scanning Responses . | . . . . . Cargo Convoy Interrupts . | . . . . . Stealth | -11 -10 -10 -8 -8 --------- Run | Yrd Mat Sub Rec Scr Distress Signals . | . . . . . Communications Jammed . | . . . . . Distress Signals . | . . . . . Times Spotted 31 | . 17 7 5 2 Peak Tracking Total 6 | . 2 6 1 5 Tactical Retreats 1 | . 1 . . . Traps | -11 -10 -10 -8 -8 ------- Run | Yrd Mat Sub Rec Scr Traps Triggered 2 | . 2 . . . Indirectly . | . . . . . Trap Hack Attempts . | . . . . . Triggered . | . . . . . Disarmed . | . . . . . Reprogrammed . | . . . . . Reused . | . . . . . Traps Extracted . | . . . . . Installed . | . . . . . Triggered . | . . . . . Machines | -11 -10 -10 -8 -8 ---------- Run | Yrd Mat Sub Rec Scr Machines Disabled 1 | . 1 . . . Max in Single Turn 1 | . 1 . . . Machines Repaired . | . . . . . Machines Dismantled . | . . . . . Machines Sabotaged . | . . . . . Overloaded Fab Kills . | . . . . . Hacking | -11 -10 -10 -8 -8 --------- Run | Yrd Mat Sub Rec Scr Machines Accessed 6 | . 5 . . 1 Terminals 5 | . 5 . . . Fabricators . | . . . . . Repair Stations . | . . . . . Recycling Units . | . . . . . Scanalyzers . | . . . . . Garrison Access . | . . . . . Total Hacks 14 | . 10 . . 4 Successful 11 | . 7 . . 4 Failed 3 | . 3 . . . Catastrophic 1 | . 1 . . . Database Lockouts . | . . . . . Manual 8 | . 8 . . . Terminals 10 | . 10 . . . Fabricators . | . . . . . Repair Stations . | . . . . . Recycling Units . | . . . . . Scanalyzers . | . . . . . Garrison Access . | . . . . . Terminal Hacks 5 | . 1 . . 4 Record 4 | . . . . 4 Robot Analysis 1 | . 1 . . . Fabricator Hacks . | . . . . . Repair Station Hacks . | . . . . . Recycling Unit Hacks . | . . . . . Scanalyzer . | . . . . . Garrison Access Hacks . | . . . . . Unauthorized Hacks 6 | . 6 . . . Terminals 6 | . 6 . . . Botnet 1 | . 1 . . . Skim 5 | . 5 . . . Fabricators . | . . . . . Repair Stations . | . . . . . Recycling Units . | . . . . . Scanalyzers . | . . . . . Garrison Access . | . . . . . Data Cores Recovered . | . . . . . Used . | . . . . . Hacking Detections 5 | . 5 . . . Full Trace Events . | . . . . . Feedback Events . | . . . . . Feedback Blocked . | . . . . . Robot Schematics Acquired . | . . . . . Robots Built . | . . . . . Authchips . | . . . . . Time . | . . . . . Total Robot Build Rating . | . . . . . Part Schematics Acquired . | . . . . . Parts Built . | . . . . . Authchips . | . . . . . Time . | . . . . . Total Part Build Rating . | . . . . . Parts Repaired . | . . . . . Time . | . . . . . Parts Recycled . | . . . . . Recycled Matter . | . . . . . Retrieved Matter . | . . . . . Retrieved Components . | . . . . . Parts Scanalyzed . | . . . . . Part Schematics Acquired . | . . . . . Parts Damaged . | . . . . . Bothacking | -11 -10 -10 -8 -8 ------------ Run | Yrd Mat Sub Rec Scr Used RIF Installer . | . . . . . Robots Hacked . | . . . . . Non-combat . | . . . . . Combat . | . . . . . Robot Hacks Applied . | . . . . . Relay Couplers Released . | . . . . . Fabnet Peak Effective % . | . . . . . Robots Rewired . | . . . . . Allies Hacked . | . . . . . Hacks Repelled . | . . . . . Allies | -11 -10 -10 -8 -8 -------- Run | Yrd Mat Sub Rec Scr Total Allies . | . . . . . Largest Group . | . . . . . Highest-Rated Group . | . . . . . Highest-Rated Ally . | . . . . . Total Orders . | . . . . . Ally Attacks . | . . . . . Total Damage . | . . . . . Kills . | . . . . . Allies Corrupted . | . . . . . Allies Melted . | . . . . . Intel | -11 -10 -10 -8 -8 ------- Run | Yrd Mat Sub Rec Scr Robot Analysis Total 1 | . 1 . . . Derelict Logs Recovered 1 | . . 1 . . Drone Launches . | . . . . . Drone Recoveries . | . . . . . Exploration | -11 -10 -10 -8 -8 ------------- Run | Yrd Mat Sub Rec Scr Turns Passed 3119 | 73 1176 316 617 937 Spaces Moved 1794 | 42 584 230 338 600 Core 7 | 7 . . . . Treads 811 | 35 583 . 188 5 Legs . | . . . . . Wheels 381 | . 1 230 150 . Hover 595 | . . . . 595 Flight . | . . . . . Fastest Speed 50 | 50 125 125 125 150 Average Speed 152 | 148 161 125 158 150 Slowest Speed 240 | 160 240 125 240 220 Overloaded Moves . | . . . . . Propulsion Burnouts . | . . . . . Robots Hopped . | . . . . . Cave-ins Triggered . | . . . . . Exploration Rate (%) 40 | 5 72 18 55 54 Regions Visited 4 Branch Regions 3 Pre-discovered Areas 1 | . 1 . . . Known Exits Taken 1 | . . 1 . . Unknown Exits Taken 3 | 1 1 . 1 . Scrap Searched 5 | . . . . 5 Spaces Dug 3 | . . 1 . 2 Terrain Destroyed 3 | . . 1 . 2 Melee 3 | . . 1 . 2 Projectile . | . . . . . AOE . | . . . . . Terrain Rammed . | . . . . . Walls Destroyed . | . . . . . Machines Disabled . | . . . . . Actions | -11 -10 -10 -8 -8 --------- Run | Yrd Mat Sub Rec Scr Total 2042 | 50 735 240 384 633 Wait 87 | . 76 . 11 . Move 1790 | 41 583 229 337 600 Hop . | . . . . . Pick Up 31 | 3 15 . 5 8 Fast Attach 16 | 6 3 . 3 4 Attach 8 | . 3 . 2 3 Detach . | . . . . . Swap 6 | . 1 2 1 2 Drop 28 | . 9 . 5 14 Fire 73 | . 45 8 20 . Melee 3 | . . 1 . 2 Ram . | . . . . . Kick . | . . . . . Crush . | . . . . . Escape Stasis . | . . . . . Rewire . | . . . . . Trap . | . . . . . Miscellaneous . | . . . . . Route ------- -11/Scrapyard -10/Materials (discovered 3 exits: [*Mat] / [*Min] / [*Sub]) -10/Subcaves (discovered 2 exits: Mat / *Rec) -8/Recycling (discovered 2 exits: [*Fac] / *Scr) -8/Scraptown History --------- Turn | Location | Event 39 | -11/Scrapyard | Discovered new exit (range 15) 74 | -11/Scrapyard | Entered Materials 310 | -10/Materials | Build established: Mutant 484 | -10/Materials | Discovered new exit (range 16) 939 | -10/Materials | Discovered new exit (range 12) 1088 | -10/Materials | Learned location of 2 exits from Subcaves 1163 | -10/Materials | Learned Storage emergency access door positions 1230 | -10/Materials | Learned location of Mines (-10) 1237 | -10/Materials | Discovered new exit (range 5) 1250 | -10/Materials | Entered Subcaves 1251 | -10/Subcaves | Identified exit to Recycling 1251 | -10/Subcaves | Identified exit to Materials 1302 | -10/Subcaves | Core integrity fell below 50% 1317 | -10/Subcaves | Learned Materials stockpile data 1566 | -10/Subcaves | Entered Recycling 1654 | -8/Recycling | Discovered new exit (range 6) 2140 | -8/Recycling | Scanned before Scraplab entrance 2165 | -8/Recycling | Entered Scraplab 2178 | -8/Recycling | Discovered new exit (range 4) 2183 | -8/Recycling | Entered Scraptown 2183 | -8/Scraptown | System corruption cleaned by C-Scrubber 2415 | -8/Scraptown | Visited UFD Registry 2415 | -8/Scraptown | Registered with UFD as "Shocksourcer" 2425 | -8/Scraptown | Visited CR-KLE's Repair Center 2431 | -8/Scraptown | Heard Great Nut preacher, LISTEN AND RECITE! 2445 | -8/Scraptown | Visited TADAMA 2457 | -8/Scraptown | Visited Cave Peace 2484 | -8/Scraptown | Visited Shadow of the Wyrm 2517 | -8/Scraptown | Visited Assassins FH 2538 | -8/Scraptown | Visited Symbiants 2604 | -8/Scraptown | Visited Research Penetration Think Tank 2637 | -8/Scraptown | Visited Junk Repository 2679 | -8/Scraptown | Visited Abandonware Association 2695 | -8/Scraptown | Learned abandonware demo "HACKBUD.EXE" 2695 | -8/Scraptown | Learned abandonware demo "SHUTEYE.EXE" 2728 | -8/Scraptown | Visited Curators Association 2778 | -8/Scraptown | Visited Scrap Suit Storage 2821 | -8/Scraptown | Visited Science Testing Area 2842 | -8/Scraptown | Visited Chapter 10 2892 | -8/Scraptown | Visited DA-N13 Charitable Foundation 2898 | -8/Scraptown | Found DCF Scrap (27 items) 2977 | -8/Scraptown | Visited Cartography Club 3097 | -8/Scraptown | Attacked by Scraptown defenders 3103 | -8/Scraptown | Found Prototype Reactor 3103 | -8/Scraptown | Identified MA-1KR's Cyclogen 3114 | -8/Scraptown | Core integrity fell below 20% 3120 | -8/Scraptown | Destroyed by JV-ZLH(E) with Barrage Gun Last Messages --------------- Dropped Axe. Acquired Great Maul. Dropped Great Maul. Acquired Hvy. Mace. Acquired 40 matter. HI-P61(p) closely examines the mainframe. LOCAL NARROWCAST: Cartography Club. We map, therefore we are. HI-P61(p) closely examines the mainframe. HI-P61(p) scrutinizes some mainframe outputs. P6-3Z1(c): "Come one, come all! See for yourself a fine selection of the many wondrous pieces in our collection!" ANNOUNCEMENT: Intruder alert! Defend Scraptown! Autobeam Turret pops up from the ground. Dropped Lgt. Nuclear Core. Acquired Prototype Reactor. Identified MA-1KR's Cyclogen. Xenon Bombardment Thruster destroyed. P6-3Z1(c) suffers critical hit (Destroy). Map ----- +----------------------------------------------------+ | "#?" ""??????????????????????? | | "##" " ?????????????????????? | | " ""????????????????????????? | | """"""""" "##" ""????????????????????????? | | """"""""" "#?" " ???????????????????????? | | #######"" "#?? ????????????????????????? | | ??????#"" "#??#######?????????????????????? | | ??????#"" "#??#"""""#?????????????????????? | | ??????#"" "#?? ! ! #?????????????????????? | | ????###"" "#? ##"???????????????????? | | ##### #"" "## X" #??????????????????? | | #??????????????????? | | "## #??????????????????? | | ##### #"" "#? ! !! !#??????????????????? | | ????###"" "#??#"""""#""#??????????????????? | | ??????#"" "#???######?????????????????????? | | ??????#"" "#??????????????????????????????? | | ??????#"" "####?###?###???????????????????? | | #######"" "##"###"###"###?????????????????? | | """"""""" "## "!" "!" # #?????????????????? | | """"""""" ? E """ """ *##?????????????????? | | "## "#?????????????????? | | "## c ""##?????????????????? | | "## t "]#??????????????????? | | ## ""##?????????????????? | | # @ "#?????????????????? | | """"" """""" ? ## """ """ ;##?????????????????? | | ##### ###### ## "$" "=" # #?????????????????? | | ?# # ##"###"###"###?????????????????? | | ?# # ####?###?###???????????????????? | | ?# """"" # #??????????????????????????????? | | ?# "###" # #??????????????????????????????? | | ?# "#X#" # #??????????????????????????????? | | ?# "# #" # #??????????????????????????????? | | ?# # ??????????????????????????????? | | ?# " " " # ??????????????????????????????? | | ?#"""""""""# ??????????????????????????????? | | ?########### ???????????????????????????????? | | ??????????????????????????????????????????????? | | ??????????????????????????????????????????????? | | ??????????????????????????????????????????????? | | ??????????????????????????????????????????????? | | ??????????????????????????????????????????????? | | ??????????????????????????????????????????????? | | ??????????????????????????????????????????????? | | ??????????????????????????????????????????????? | | ??????????????????????????????????????????????? | | ??????????????????????????????????????????????? | | ??????????????????????????????????????????????? | | ??????????????????????????????????????????????? | +----------------------------------------------------+ Best States ------------- Heat Dissipation 35 Energy Generation 10 Energy Capacity 2600 Matter Stores 300 Matter Capacity 300 Sight Range 16 Robot Scan Range 14 Terrain Scan Density 10 Evasion (%) 40 Targeting Accuracy 5 Recoil Reduction 2 Item Schematics ----------------- None Robot Schematics ------------------ None Fabricated ------------ Nothing Alien Tech Used ----------------- None Achievements -------------- None Challenges ------------ None Game ------ Seed MiningAntimissileStorm Manual? 0 Play Time 00:16:56 Cumulative 562.3 hours Start 2024.08.14 @ 14:05:18 End 2024.08.14 @ 14:20:59 Sessions 1 Manual Loads 0 Difficulty Rogue Special Mode None Game No. 330 Rogue 330 Adventurer 0 Explorer 0 Win Type - Total 36 Types 22/2/4/3/1/1/1/1/1 Lore% 97 Gallery% 98 Achievement% 98 Wizard Run 0 Options --------- Layout 1 ASCII 0 Keyboard 0 Movement Numpad Keybinds 0 Fullscreen 1 Font 24/Smallcaps Map View 50x35 Zoom Use 0% Tactical HUD 1 Map Filters NONE Filters NONE Steam 1 RUN: c43d1823-fec5-4fb8-bf8d-cfde20d59466